bitfinex/quotes_BTCUSD_20241025
["timestamp","ask_amount","ask_price","bid_price","bid_amount"]
[1729881413424,0.005,67547.0,67546.0,0.148047]
[1729881413643,0.15550381,67547.0,67546.0,0.148047]
[1729881413866,0.005,67545.0,67544.0,0.148051]
[1729881414089,0.005,67547.0,67546.0,0.148047]
[1729881414322,0.15550381,67547.0,67546.0,0.148047]
[1729881414824,0.00438424,67548.0,67546.0,0.148047]
[1729881415066,0.00438424,67548.0,67547.0,0.50489169]
[1729881415289,0.00438424,67548.0,67547.0,0.50193112]
[1729881417316,0.00438424,67548.0,67547.0,0.53983513]
[1729881417732,0.00222075,67555.0,67554.0,0.14904476]
[1729881418164,0.15772456,67555.0,67554.0,0.00101576]
[1729881418377,0.15772456,67555.0,67554.0,0.14904476]
[1729881419084,0.15772456,67555.0,67554.0,0.00101576]
[1729881419324,0.16272456,67555.0,67554.0,0.00101576]
[1729881419531,0.16772456,67555.0,67554.0,0.00101576]
[1729881419967,0.31575156,67555.0,67554.0,0.00101576]
[1729881421353,0.16772456,67555.0,67554.0,0.00101576]
[1729881422452,0.16854656,67555.0,67554.0,0.00101576]
[1729881422718,0.16354656,67555.0,67554.0,0.14904476]
[1729881423171,0.000822,67555.0,67554.0,0.50293088]
[1729881423377,0.000822,67555.0,67554.0,0.14904476]
[1729881424316,0.15132581,67555.0,67554.0,0.14904476]
[1729881424536,0.15132581,67555.0,67554.0,0.00101576]
[1729881424537,0.16632581,67555.0,67554.0,0.00101576]
[1729881424755,0.69137151,67555.0,67554.0,0.00101576]
[1729881424968,0.70137151,67555.0,67554.0,0.00101576]
[1729881425858,0.015,67531.0,67519.0,0.148105]
[1729881426070,0.015,67542.0,67516.0,0.22237541]
[1729881426071,0.005,67539.0,67526.0,0.35388612]
[1729881426309,0.005,67542.0,67541.0,0.148058]
[1729881426524,0.01722115,67542.0,67520.0,0.35388612]
[1729881426751,0.005,67538.0,67537.0,0.148066]
[1729881429207,0.005,67527.0,67522.0,0.22237541]
[1729881429434,0.01,67516.0,67515.0,0.22237541]
[1729881429671,0.015,67516.0,67515.0,0.22237541]
[1729881429980,0.005,67528.0,67515.0,0.22237541]
[1729881429981,0.010822,67555.0,67554.0,0.148029]
[1729881430172,0.010822,67555.0,67539.0,0.296123]
[1729881430173,0.005,67552.0,67539.0,0.296123]
[1729881430413,0.000822,67555.0,67548.0,0.148042]
[1729881430414,0.01,67549.0,67548.0,0.148042]
[1729881430642,0.15550381,67549.0,67548.0,0.148042]
[1729881430881,0.010822,67555.0,67554.0,0.148029]
[1729881431118,0.000822,67555.0,67554.0,0.148029]
[1729881431361,0.000822,67555.0,67554.0,0.15098919]
[1729881431586,0.000822,67555.0,67554.0,0.148029]
[1729881432507,0.000822,67555.0,67554.0,0.40883868]
[1729881432725,0.000822,67555.0,67554.0,0.45270441]
[1729881432953,0.000822,67555.0,67554.0,0.230329]
[1729881433585,0.000822,67555.0,67554.0,0.38379253]
[1729881433873,0.000822,67555.0,67554.0,0.38083281]
[1729881434326,0.000822,67555.0,67554.0,0.230329]
[1729881434545,0.01004,67570.0,67554.0,0.230329]
[1729881434546,0.22241541,67570.0,67569.0,0.147996]
[1729881434751,4e-05,67570.0,67569.0,0.147996]
[1729881437319,0.15054381,67570.0,67569.0,0.147996]
[1729881437613,0.15054381,67570.0,67554.0,0.62808612]
[1729881437614,0.005,67564.0,67557.0,0.22237541]
[1729881437778,0.005,67557.0,67553.0,0.001642]
[1729881437996,0.005,67560.0,67553.0,0.001642]
[1729881437997,0.015,67554.0,67553.0,0.001642]
[1729881438700,0.017,67554.0,67553.0,0.001642]
[1729881438941,0.16550381,67554.0,67553.0,0.001642]
[1729881441082,0.18327624,67554.0,67553.0,0.001642]
[1729881441315,0.17050381,67554.0,67553.0,0.001642]
[1729881441591,0.16550381,67554.0,67553.0,0.001642]
[1729881442332,0.15550381,67554.0,67553.0,0.001642]
[1729881442559,0.15550381,67554.0,67553.0,0.149673]
[1729881442560,0.15050381,67554.0,67553.0,0.149673]
[1729881442989,0.13550381,67554.0,67553.0,0.149673]
[1729881443429,0.005,67554.0,67553.0,0.149673]
[1729881443659,0.005,67554.0,67553.0,0.1526332]
[1729881444960,0.005,67554.0,67553.0,0.149673]
[1729881446039,0.005,67554.0,67553.0,0.1496322]
[1729881446294,0.16550381,67554.0,67553.0,0.0016012]
[1729881447885,0.31553281,67554.0,67553.0,0.0016012]
[1729881448091,0.31353281,67554.0,67553.0,0.0016012]
[1729881448314,0.31553281,67554.0,67553.0,0.0016012]
[1729881448750,0.31353281,67554.0,67553.0,0.0016012]
[1729881448978,0.16550381,67554.0,67553.0,0.0016012]
[1729881451331,0.16550381,67554.0,67553.0,1.0016012]
[1729881452374,0.31353281,67554.0,67553.0,1.0016012]
[1729881452786,0.16550381,67554.0,67553.0,1.0016012]
[1729881453674,0.16550381,67554.0,67553.0,1.1496322]
[1729881453675,0.15550381,67554.0,67553.0,1.1496322]
[1729881453891,0.16050381,67554.0,67553.0,1.0016012]
[1729881454349,0.16772489,67554.0,67553.0,1.0016012]
[1729881457423,0.16854589,67554.0,67553.0,1.0016012]
[1729881460841,0.16632481,67554.0,67553.0,1.0016012]
[1729881461330,0.15132481,67554.0,67553.0,0.1496322]
[1729881461579,0.000821,67554.0,67553.0,0.1496322]
[1729881461788,0.000821,67554.0,67553.0,0.15259243]
[1729881462460,0.000821,67554.0,67553.0,0.23399243]
[1729881462671,0.000821,67554.0,67553.0,0.2310322]
[1729881463591,0.000821,67554.0,67553.0,0.2339925]
[1729881464231,0.000821,67554.0,67553.0,1.2339925]
[1729881464450,0.000821,67554.0,67553.0,1.2310322]
[1729881464961,0.15632481,67554.0,67553.0,1.0016012]
[1729881465396,0.15632481,67554.0,67553.0,1.1496322]
[1729881465601,0.15132481,67554.0,67553.0,1.1496322]
[1729881466045,0.000821,67554.0,67553.0,1.1496322]
[1729881469116,0.000821,67554.0,67553.0,0.1496322]
[1729881470416,0.000821,67554.0,67553.0,0.15259252]
[1729881471724,0.000821,67554.0,67553.0,0.1496322]
[1729881472159,0.15132481,67554.0,67553.0,0.1496322]
[1729881472608,0.000821,67554.0,67553.0,0.1496322]
[1729881472673,0.15132481,67554.0,67553.0,0.0016012]
[1729881472859,0.15132481,67554.0,67553.0,0.1496322]
[1729881473101,0.15632481,67554.0,67553.0,0.1496322]
[1729881473319,0.16132481,67554.0,67553.0,0.1496322]
[1729881473788,0.18326144,67554.0,67553.0,0.0016012]
[1729881474021,0.16632481,67554.0,67553.0,0.0016012]
[1729881474973,0.16632481,67554.0,67553.0,0.1496322]
[1729881475673,0.16132481,67554.0,67553.0,0.1496322]
[1729881475896,0.16632481,67554.0,67553.0,0.1496322]
[1729881476133,0.15632481,67554.0,67553.0,0.1496322]
[1729881476372,0.16132481,67554.0,67553.0,0.1496322]
[1729881476603,0.16632481,67554.0,67553.0,0.1496322]
[1729881477306,0.16632481,67554.0,67553.0,0.0016012]
[1729881478486,0.65446225,67554.0,67553.0,0.0016012]
[1729881478731,0.15050381,67554.0,67553.0,0.0016012]
[1729881478966,0.52870462,67554.0,67553.0,0.0016012]
[1729881479681,0.53070462,67554.0,67553.0,0.0016012]
[1729881479958,0.53070462,67554.0,67537.0,0.01]
[1729881479959,0.002,67551.0,67537.0,0.01]
[1729881480275,0.002,67551.0,67518.0,0.3835667]
[1729881480276,0.148074,67534.0,67533.0,0.22237541]
[1729881480482,0.37824581,67534.0,67533.0,0.22237541]
[1729881480899,0.23017181,67534.0,67524.0,0.22237541]
[1729881481139,0.15050381,67533.0,67527.0,0.153087]
[1729881481375,0.15050381,67533.0,67527.0,0.005]
[1729881481610,0.15050381,67533.0,67528.0,0.148085]
[1729881482078,0.15050381,67533.0,67527.0,0.153088]
[1729881482322,0.22237541,67532.0,67523.0,0.005]
[1729881482560,0.22237541,67532.0,67504.0,0.01]
[1729881482561,0.15050381,67526.0,67519.0,0.22237541]
[1729881482796,0.23017181,67522.0,67519.0,0.22237541]
[1729881483058,0.01505038,67533.0,67519.0,0.22237541]
[1729881483059,0.15050381,67521.0,67519.0,0.22237541]
[1729881483286,0.15050381,67521.0,67519.0,0.005]
[1729881483495,0.15050381,67521.0,67520.0,0.148104]
[1729881483702,0.15050381,67521.0,67519.0,0.005]
[1729881484417,0.15050381,67521.0,67514.0,0.01]
[1729881484659,0.15050381,67521.0,67520.0,0.22237541]
[1729881484886,0.15050381,67521.0,67517.0,0.005]
[1729881485570,0.15050381,67521.0,67495.0,0.005]
[1729881485571,0.15250381,67519.0,67509.0,0.005]
[1729881485803,0.15050381,67519.0,67509.0,0.153128]
[1729881486034,0.15050381,67519.0,67510.0,0.01]
[1729881488718,0.15050381,67519.0,67510.0,0.158126]
[1729881489177,0.15050381,67519.0,67518.0,0.148108]
[1729881489388,0.40920478,67550.0,67518.0,0.148108]
[1729881489389,0.23017181,67540.0,67524.0,0.163095]
[1729881489614,0.1527253,67525.0,67519.0,0.005]
[1729881489830,0.1527253,67525.0,67516.0,0.306226]
[1729881489831,0.15250381,67524.0,67516.0,0.005]
[1729881490069,0.23017181,67520.0,67511.0,0.22737541]
[1729881490286,0.15050381,67519.0,67514.0,0.005]
[1729881490974,0.15050381,67519.0,67517.0,0.005]
[1729881491222,0.15050381,67519.0,67518.0,0.148108]
[1729881491439,0.15050381,67519.0,67518.0,0.153108]
[1729881492137,0.15050381,67519.0,67518.0,0.005]
[1729881493020,0.15050381,67519.0,67518.0,0.154754]
[1729881493265,0.15050381,67519.0,67518.0,0.006646]
[1729881493682,0.15050381,67519.0,67518.0,0.001646]
[1729881496745,0.30060981,67519.0,67518.0,0.001646]
[1729881497423,0.41292787,67519.0,67518.0,0.001646]
[1729881497635,0.002,67511.0,67501.0,0.22237541]
[1729881497850,0.23017181,67502.0,67501.0,0.22237541]
[1729881498333,0.002,67514.0,67497.0,0.005]
[1729881498334,0.23017181,67507.0,67497.0,0.005]
[1729881498573,0.23017181,67517.0,67503.0,0.005]
[1729881498794,0.22237541,67513.0,67503.0,0.005]
[1729881499017,0.15050381,67512.0,67504.0,0.148139]
[1729881499240,0.15050381,67512.0,67505.0,0.005]
[1729881499716,0.15050381,67512.0,67507.0,0.005]
[1729881499953,0.23017181,67511.0,67504.0,0.005]
[1729881500151,0.15050381,67510.0,67504.0,0.005]
[1729881501466,0.15050381,67510.0,67501.0,0.005]
[1729881501671,0.15050381,67510.0,67504.0,0.005]
[1729881501874,0.15050381,67510.0,67503.0,0.005]
[1729881502319,0.15050381,67510.0,67504.0,0.005]
[1729881502551,0.00222223,67507.0,67504.0,0.005]
[1729881502769,0.15050381,67506.0,67502.0,0.005]
[1729881502999,0.15050381,67506.0,67501.0,0.22237541]
[1729881503220,0.15050381,67506.0,67498.0,0.005]
[1729881503578,0.2332311,67506.0,67498.0,0.22237541]
[1729881503583,0.2332311,67506.0,67498.0,0.22737541]
[1729881503798,0.29863881,67506.0,67496.0,0.005]
[1729881504015,0.15050381,67506.0,67496.0,0.005]
[1729881504233,0.15050381,67506.0,67497.0,0.005]
[1729881504451,0.15050381,67506.0,67498.0,0.005]
[1729881505559,0.20360609,67506.0,67498.0,0.005]
[1729881505796,0.148151,67499.0,67492.0,0.005]
[1729881506072,0.23017181,67500.0,67498.0,0.22237541]
[1729881506282,0.148139,67504.0,67494.0,0.005]
[1729881506751,0.23017181,67505.0,67494.0,0.005]
[1729881506961,0.37830881,67505.0,67498.0,0.001646]
[1729881507416,0.15050381,67502.0,67498.0,0.001646]
[1729881509262,0.000823,67519.0,67516.0,0.148113]
[1729881509473,0.000823,67519.0,67518.0,0.168108]
[1729881509682,0.000823,67519.0,67518.0,0.39727981]
[1729881509918,0.22237541,67546.0,67543.0,0.005]
[1729881510165,0.22237541,67546.0,67543.0,0.153052]
[1729881510384,0.22319841,67553.0,67545.0,0.005]
[1729881510605,0.15050381,67551.0,67545.0,0.005]
[1729881510833,0.000823,67553.0,67542.0,0.004]
[1729881510834,0.15050381,67548.0,67542.0,0.004]
[1729881511577,0.15050381,67545.0,67542.0,0.004]
[1729881512017,0.148051,67544.0,67542.0,0.004]
[1729881512238,0.15050381,67543.0,67542.0,0.004]
[1729881512445,0.15050381,67543.0,67539.0,0.22237541]
[1729881512871,0.15050381,67543.0,67538.0,0.0801]
[1729881513935,0.15050381,67543.0,67538.0,0.0841]
[1729881514569,0.15050381,67543.0,67535.0,0.37544541]
[1729881514770,0.296074,67551.0,67527.0,0.0796]
[1729881514771,0.15050381,67538.0,67530.0,0.22237541]
[1729881515059,0.29856981,67538.0,67530.0,0.22237541]
[1729881515251,0.02985698,67537.0,67530.0,0.22237541]
[1729881515495,0.15050381,67536.0,67530.0,0.22237541]
[1729881515735,0.15050381,67536.0,67535.0,0.37824281]
[1729881515976,0.15050381,67536.0,67531.0,0.148078]
[1729881516648,0.15050381,67536.0,67530.0,0.23017181]
[1729881516870,0.15050381,67536.0,67531.0,0.14808]
[1729881517128,0.15050381,67536.0,67531.0,0.29616]
[1729881517334,0.15050381,67536.0,67530.0,0.45754722]
[1729881517595,0.15050381,67536.0,67533.0,0.148075]
[1729881518498,0.15050381,67536.0,67530.0,0.45754722]
[1729881518499,0.15050381,67536.0,67530.0,0.38325281]
[1729881518727,0.15050381,67536.0,67530.0,0.23517181]
[1729881519212,0.15050381,67536.0,67531.0,0.148078]
[1729881519440,0.15050381,67536.0,67532.0,0.148077]
[1729881520126,0.15050381,67536.0,67530.0,0.005]
[1729881520357,0.15050381,67536.0,67531.0,0.22237541]
[1729881520592,0.15050381,67536.0,67530.0,0.005]
[1729881520804,0.15050381,67536.0,67529.0,0.005]
[1729881521495,0.15050381,67536.0,67531.0,0.22237541]
[1729881521708,0.00304383,67553.0,67539.0,0.005]
[1729881521925,0.15050381,67547.0,67546.0,0.148047]
[1729881522138,0.15050381,67547.0,67546.0,0.153047]
[1729881522341,0.15050381,67547.0,67546.0,0.158047]
[1729881523264,0.15050381,67547.0,67546.0,0.153047]
[1729881523465,0.15050381,67547.0,67546.0,0.158047]
[1729881525002,0.15050381,67547.0,67546.0,0.162047]
[1729881525220,0.15050381,67547.0,67546.0,0.239347]
[1729881526601,0.15050381,67547.0,67546.0,0.234347]
[1729881526823,0.15050381,67547.0,67546.0,0.009]
[1729881527269,0.29854881,67547.0,67546.0,0.009]
[1729881527498,0.15050381,67547.0,67546.0,0.009]
[1729881527711,0.29854881,67547.0,67546.0,0.009]
[1729881527935,0.15050381,67547.0,67546.0,0.004]
[1729881529036,0.296094,67546.0,67537.0,0.0807]
[1729881529312,0.15050381,67544.0,67538.0,0.22237541]
[1729881529522,0.29856281,67541.0,67532.0,0.005]
[1729881529730,0.148065,67538.0,67531.0,0.22237541]
[1729881529948,0.15050381,67537.0,67531.0,0.22737541]
[1729881530150,0.148072,67535.0,67529.0,0.005]
[1729881530395,0.15050381,67534.0,67529.0,0.005]
[1729881531332,0.15050381,67534.0,67527.0,0.0847]
[1729881531333,0.15050381,67530.0,67524.0,0.22237541]
[1729881531567,0.15050381,67526.0,67524.0,0.22237541]
[1729881531980,0.15050381,67526.0,67518.0,0.148107]
[1729881532188,0.15050381,67526.0,67517.0,0.009]
[1729881532417,0.29839951,67527.0,67512.0,0.31087181]
[1729881532418,0.29860781,67520.0,67512.0,0.0807]
[1729881532668,0.15050381,67520.0,67512.0,0.0807]
[1729881532881,0.15050381,67520.0,67514.0,0.004]
[1729881533106,0.29860781,67520.0,67512.0,0.0807]
[1729881533327,0.38790739,67520.0,67510.0,0.005]
[1729881533555,0.29860781,67520.0,67510.0,0.005]
[1729881533784,0.29860781,67520.0,67509.0,0.157127]
[1729881534004,0.29860781,67520.0,67510.0,0.148125]
[1729881534270,0.29860781,67520.0,67509.0,0.005]
[1729881534719,0.29860781,67520.0,67509.0,0.152272]
[1729881534950,0.15050381,67519.0,67509.0,0.152272]
[1729881535620,0.15050381,67519.0,67509.0,0.005]
[1729881535850,0.15050381,67519.0,67509.0,0.153128]
[1729881536071,0.15050381,67519.0,67510.0,0.148125]
[1729881536497,0.20998429,67519.0,67509.0,0.153126]
[1729881537032,0.296103,67544.0,67517.0,0.296221]
[1729881537243,0.22973933,67548.0,67534.0,0.157073]
[1729881537244,0.22237541,67535.0,67534.0,0.157073]
[1729881537454,0.000823,67548.0,67546.0,0.148047]
[1729881537682,0.15132681,67547.0,67546.0,0.148047]
[1729881537884,0.15132681,67547.0,67542.0,0.005]
[1729881537885,0.15132681,67547.0,67545.0,0.004]
[1729881538161,0.15050381,67546.0,67544.0,0.004]
[1729881538366,0.15050381,67546.0,67536.0,0.296137]
[1729881538367,0.14805,67545.0,67537.0,0.22237541]
[1729881538589,0.000823,67547.0,67544.0,0.22237541]
[1729881538834,0.000823,67547.0,67541.0,0.148056]
[1729881539029,0.15050381,67546.0,67545.0,0.22237541]
[1729881539245,0.15050381,67546.0,67542.0,0.005]
[1729881539472,0.15050381,67546.0,67543.0,0.148053]
[1729881539890,0.15050381,67546.0,67542.0,0.005]
[1729881540093,0.15050381,67546.0,67545.0,0.148049]
[1729881540552,0.15050381,67546.0,67542.0,0.009]
[1729881540981,0.15050381,67546.0,67543.0,0.148052]
[1729881541188,0.15050381,67546.0,67545.0,0.148049]
[1729881541652,0.15050381,67546.0,67545.0,0.46732081]
[1729881542089,0.000823,67547.0,67546.0,0.162047]
[1729881543627,0.000823,67547.0,67542.0,0.005]
[1729881543628,0.15132681,67547.0,67542.0,0.005]
[1729881543852,0.15050381,67546.0,67542.0,0.005]
[1729881544069,0.16571879,67546.0,67542.0,0.005]
[1729881544279,0.15050381,67546.0,67542.0,0.005]
[1729881544496,0.15050381,67546.0,67544.0,0.148049]
[1729881544742,0.15050381,67546.0,67545.0,0.148049]
[1729881546109,0.15050381,67546.0,67543.0,0.296107]
[1729881546355,0.15272474,67546.0,67542.0,0.005]
[1729881546583,0.15272474,67546.0,67543.0,0.148053]
[1729881546809,0.15272474,67546.0,67542.0,0.005]
[1729881547282,0.15272474,67546.0,67544.0,0.14805]
[1729881547521,0.15272474,67546.0,67542.0,0.005]
[1729881547964,0.15272474,67546.0,67542.0,0.153055]
[1729881548182,0.15272474,67546.0,67542.0,0.005]
[1729881548404,0.15272474,67546.0,67542.0,0.153055]
[1729881548653,0.15272474,67546.0,67536.0,0.0801]
[1729881548888,0.15050381,67543.0,67535.0,0.22237541]
[1729881549112,0.15050381,67543.0,67538.0,0.004]
[1729881549344,0.15050381,67543.0,67535.0,0.22237541]
[1729881549345,0.29855781,67543.0,67535.0,0.22237541]
[1729881549714,0.35841008,67543.0,67536.0,0.004]
[1729881549805,0.35841008,67543.0,67537.0,0.004]
[1729881550045,0.21035608,67543.0,67537.0,0.004]
[1729881550278,0.15050381,67543.0,67541.0,0.22237541]
[1729881550522,0.15050381,67543.0,67541.0,0.005]
[1729881550750,0.15050381,67543.0,67534.0,0.23137541]
[1729881550984,0.000823,67547.0,67526.0,0.0834]
[1729881550985,0.148069,67536.0,67526.0,0.0834]
[1729881551219,0.59471681,67535.0,67534.0,0.22237541]
[1729881551450,0.148076,67533.0,67529.0,0.005]
[1729881551687,0.148082,67530.0,67528.0,0.22237541]
[1729881551917,0.148082,67530.0,67521.0,0.1924]
[1729881551918,0.15050381,67529.0,67524.0,0.005]
[1729881552163,0.15050381,67529.0,67524.0,0.004]
[1729881552164,0.148087,67528.0,67524.0,0.004]
[1729881552400,0.29859381,67527.0,67520.0,0.22237541]
[1729881552638,0.15050381,67527.0,67520.0,0.22237541]
[1729881552881,0.15050381,67527.0,67517.0,0.005]
[1729881553116,0.296169,67529.0,67509.0,0.297899]
[1729881553117,0.444298,67522.0,67513.0,0.005]
[1729881553350,0.15050381,67521.0,67517.0,0.22237541]
[1729881553595,0.15050381,67520.0,67514.0,0.004]
[1729881553836,0.15050381,67520.0,67515.0,0.22237541]
[1729881554092,0.00222172,67518.0,67513.0,0.004]
[1729881554335,0.15050381,67517.0,67513.0,0.004]
[1729881554580,0.15050381,67517.0,67514.0,0.148117]
[1729881554820,0.15050381,67517.0,67510.0,0.005]
[1729881555032,0.15050381,67517.0,67511.0,0.148122]
[1729881555274,0.15050381,67517.0,67510.0,0.009]
[1729881555494,0.05970345,67516.0,67509.0,0.149773]
[1729881555708,0.05970345,67516.0,67510.0,0.005]
[1729881555709,0.15050381,67515.0,67510.0,0.005]
[1729881555944,0.15050381,67515.0,67509.0,0.149773]
[1729881556160,0.15050381,67515.0,67510.0,0.005]
[1729881556389,0.18655761,67515.0,67510.0,0.005]
[1729881556615,0.18655761,67515.0,67509.0,0.006646]
[1729881556820,0.18655761,67515.0,67509.0,0.001646]
[1729881557359,0.15050381,67515.0,67513.0,0.004]
[1729881557562,0.15050381,67515.0,67510.0,0.22737541]
[1729881557563,0.15050381,67515.0,67510.0,0.005]
[1729881557797,0.15050381,67515.0,67509.0,0.001646]
[1729881558017,0.16577636,67515.0,67509.0,0.001646]
[1729881558439,0.148119,67514.0,67509.0,0.001646]
[1729881558662,0.15050381,67513.0,67509.0,0.001646]
[1729881560224,0.01527255,67515.0,67509.0,0.001646]
[1729881560225,0.29862981,67510.0,67509.0,0.001646]
[1729881560446,0.15050381,67510.0,67509.0,0.001646]
[1729881563577,0.29862981,67510.0,67509.0,0.001646]
[1729881564283,0.30062981,67510.0,67509.0,0.001646]
[1729881565892,0.30162981,67510.0,67509.0,0.001646]
[1729881566112,0.44162362,67510.0,67509.0,0.001646]
[1729881568552,0.62572362,67510.0,67509.0,0.001646]
[1729881569013,0.30162981,67510.0,67509.0,0.001646]
[1729881569661,0.31562981,67510.0,67509.0,0.003646]
[1729881569873,0.30862981,67510.0,67509.0,0.002646]
[1729881570286,0.30662981,67510.0,67509.0,0.002646]
[1729881570462,0.31162981,67510.0,67509.0,0.002646]
[1729881570717,0.45262362,67510.0,67509.0,0.002646]
[1729881571145,0.44762362,67510.0,67509.0,0.001646]
[1729881571348,0.45462362,67510.0,67509.0,0.0028529]
[1729881571770,0.44962362,67510.0,67509.0,0.0028529]
[1729881572809,0.45662362,67510.0,67509.0,0.0038529]
[1729881573047,0.44962362,67510.0,67509.0,0.0028529]
[1729881573287,0.30862981,67510.0,67509.0,0.0028529]
[1729881573506,0.31362981,67510.0,67509.0,0.0038529]
[1729881573714,0.31362981,67510.0,67509.0,0.0028529]
[1729881573953,0.30862981,67510.0,67509.0,0.0028529]
[1729881574182,0.30862981,67510.0,67509.0,0.0038529]
[1729881574183,0.31562981,67510.0,67509.0,0.0038529]
[1729881574403,0.45124362,67510.0,67509.0,0.0038529]
[1729881576592,0.14915,67499.0,67498.0,0.001646]
[1729881576892,0.45344506,67499.0,67498.0,0.001646]
[1729881577109,0.29965381,67499.0,67498.0,0.001646]
[1729881577335,0.43368412,67499.0,67498.0,0.001646]
[1729881577548,0.43568412,67499.0,67498.0,0.001646]
[1729881579990,0.44093633,67499.0,67498.0,0.001646]
[1729881580902,0.43893633,67499.0,67498.0,0.001646]
[1729881581117,0.30490602,67499.0,67498.0,0.001646]
[1729881581801,0.15575602,67499.0,67498.0,0.276146]
[1729881582043,0.00222172,67518.0,67498.0,0.276146]
[1729881582044,0.00222172,67518.0,67507.0,0.005]
[1729881582261,0.22237541,67512.0,67506.0,0.004]
[1729881582475,0.15050381,67517.0,67506.0,0.004]
[1729881582476,0.15050381,67511.0,67506.0,0.004]
[1729881582931,0.15050381,67511.0,67500.0,0.22237541]
[1729881582932,0.15050381,67507.0,67500.0,0.22237541]
[1729881583156,0.31368719,67507.0,67500.0,0.22237541]
[1729881583652,0.16555419,67507.0,67500.0,0.22237541]
[1729881583879,0.14815,67499.0,67498.0,0.001646]
[1729881584104,0.15050381,67501.0,67498.0,0.001646]
[1729881585242,0.15050381,67501.0,67499.0,0.44445]
[1729881585447,0.15050381,67501.0,67499.0,0.14815]
[1729881585659,0.15050381,67501.0,67498.0,0.001646]
[1729881586079,0.16609187,67501.0,67498.0,0.001646]
[1729881586941,0.15050381,67500.0,67498.0,0.001646]
[1729881587186,0.15050381,67499.0,67498.0,0.001646]
[1729881588683,0.30229506,67499.0,67498.0,0.001646]
[1729881588899,0.45044506,67499.0,67498.0,0.001646]
[1729881589314,0.29865381,67499.0,67498.0,0.001646]
[1729881591157,0.30389197,67499.0,67498.0,0.001646]
[1729881591380,0.40901789,67499.0,67498.0,0.001646]
[1729881591593,0.41101789,67499.0,67498.0,0.001646]
[1729881593141,0.41101789,67499.0,67498.0,0.0018529]
[1729881593373,0.56080914,67499.0,67498.0,0.0018529]
[1729881593614,0.78618455,67499.0,67498.0,0.0018529]
[1729881593843,0.29996925,67486.0,67485.0,0.22405141]
[1729881594082,0.60548771,67486.0,67485.0,0.22405141]
[1729881594293,0.6516669,67486.0,67485.0,0.001676]
[1729881594951,0.6536669,67486.0,67485.0,0.001676]
[1729881595188,0.148214,67470.0,67469.0,0.22237541]
[1729881595415,0.15050381,67470.0,67469.0,0.22237541]
[1729881595641,0.30229506,67470.0,67469.0,0.22237541]
[1729881595856,0.30229506,67470.0,67468.0,0.0765]
[1729881596068,0.15050381,67469.0,67468.0,0.0765]
[1729881596763,0.18073332,67469.0,67464.0,0.1965]
[1729881596972,0.30229506,67466.0,67465.0,0.22405141]
[1729881597192,0.30451869,67466.0,67465.0,0.001676]
[1729881599002,0.15272744,67466.0,67465.0,0.149901]
[1729881599223,0.30451869,67466.0,67465.0,0.001676]
[1729881599665,0.15272744,67466.0,67465.0,0.37727641]
[1729881599885,0.15272744,67466.0,67465.0,0.154901]
[1729881600330,0.15272744,67466.0,67465.0,0.158901]
[1729881600786,0.22237541,67483.0,67477.0,0.1912]
[1729881601042,0.15179125,67480.0,67477.0,0.1912]
[1729881601255,0.51874841,67483.0,67468.0,0.005]
[1729881601497,0.740937,67482.0,67471.0,0.22237541]
[1729881601735,0.740937,67482.0,67471.0,0.37058641]
[1729881601736,0.148189,67482.0,67471.0,0.37058641]
[1729881601949,0.15050381,67481.0,67472.0,0.148208]
[1729881602651,0.15050381,67481.0,67473.0,0.148206]
[1729881603120,0.15050381,67481.0,67470.0,0.296425]
[1729881603399,0.22237541,67475.0,67465.0,0.001676]
[1729881603611,0.296375,67482.0,67468.0,0.22237541]
[1729881603612,0.15050381,67474.0,67468.0,0.22237541]
[1729881604035,0.15050381,67474.0,67465.0,0.001676]
[1729881604291,0.29870881,67474.0,67465.0,0.001676]
[1729881604510,0.15050381,67471.0,67468.0,0.22237541]
[1729881604936,0.15050381,67471.0,67467.0,0.14822]
[1729881605147,0.15050381,67471.0,67466.0,0.15179125]
[1729881605794,0.15050381,67471.0,67465.0,0.001676]
[1729881606486,0.148214,67470.0,67465.0,0.001676]
[1729881606716,0.15050381,67469.0,67465.0,0.001676]
[1729881607815,0.15050381,67469.0,67466.0,0.0002069]
[1729881608045,0.29872081,67469.0,67466.0,0.0002069]
[1729881608487,0.15050381,67469.0,67466.0,0.0002069]
[1729881608715,0.29871981,67469.0,67466.0,0.0002069]
[1729881608944,0.15050381,67469.0,67466.0,0.0002069]
[1729881609595,0.29871981,67469.0,67466.0,0.0002069]
[1729881609821,0.15050381,67469.0,67466.0,0.0002069]
[1729881611416,0.29872081,67469.0,67466.0,0.0002069]
[1729881612082,0.15050381,67469.0,67466.0,0.0002069]
[1729881612321,0.04424716,67489.0,67469.0,0.153216]
[1729881612532,0.22459881,67486.0,67479.0,0.31398525]
[1729881613006,0.296281,67504.0,67479.0,0.31398525]
[1729881613007,0.148149,67500.0,67479.0,0.39438525]
[1729881613271,0.296276,67505.0,67479.0,0.439194]
[1729881613502,0.51866341,67502.0,67479.0,0.59098525]
[1729881613738,0.148159,67495.0,67479.0,0.439194]
[1729881613949,0.296344,67489.0,67479.0,0.286]
[1729881614383,0.296359,67486.0,67479.0,0.286]
[1729881614603,0.296344,67489.0,67479.0,0.434194]
[1729881614867,0.148177,67487.0,67479.0,0.434194]
[1729881615113,0.296328,67493.0,67479.0,0.434194]
[1729881615357,0.296319,67495.0,67479.0,0.59098525]
[1729881615569,0.001,67498.0,67479.0,0.59098525]
[1729881615775,0.148158,67496.0,67479.0,0.59098525]
[1729881615990,0.001,67498.0,67479.0,0.59098525]
[1729881616432,0.296315,67496.0,67479.0,0.59098525]
[1729881616644,0.148167,67492.0,67479.0,0.59098525]
[1729881616881,0.148164,67493.0,67479.0,0.59098525]
[1729881617329,0.148166,67492.0,67479.0,0.59098525]
[1729881617548,0.22237541,67491.0,67479.0,0.59098525]
[1729881618710,0.22237541,67491.0,67479.0,0.439194]
[1729881619417,0.001,67505.0,67479.0,0.81336066]
[1729881619630,0.22237541,67505.0,67498.0,0.58084325]
[1729881620976,0.000823,67509.0,67498.0,0.152152]
[1729881620977,0.15272672,67499.0,67498.0,0.152152]
[1729881621202,0.15050381,67499.0,67498.0,0.152152]